Workbook

Sheet Notes

Sheet SatBuffer Design
B2: USDA- Natural Resources Conservation Service | G2: Maryland NRCS Version 2.2 - 4/13/2020
B3: Project Name | E3: Designed by: | H3: Date:
B4: Site Location | E4: Checked by: | H4: Date:
B5: County | E5: Approved by: | H5: Date: | X5: SATBUFF capacity | Z5: Drain capacity
T6: 1 | X6: =IF(OR(D14=0,D14=""),10000, D14*0.05) -> 0.08158875707 | Z6: =IF(D14>0,D14,10000) -> 1.631775141
B7: Determine System Capacity: | T7: 1 | U7: CPT | X7: =IF(I11="",10000, I11*0.05) -> 0.1558715278 | Z7: =IF(I11>0,I11,10000) -> 3.117430556
B8: Option 1 - Mainline Configuration | F8: Option 2 - Drainage Coefficient | T8: 2 | U8: Dual Wall | X8: =IF(I14>0,I14*0.05,10000) -> 10000 | Z8: =IF(I14>0,I14,10000) -> 10000
B9: Mainline tile size (in) | F9: Drainage area of tile system (ac) | I9: 14.84 | T9: 3 | U9: Clay or Concrete
B10: Mainline tile grade (%) | D10: 0.4 | F10: Drainage coefficient (inches/day) | I10: 5 | X10: =MIN(X6:X9) -> 0.08158875707 | Z10: =MIN(Z6:Z8) -> 1.631775141
B11: Mainline tile material | F11: Capacity of drainage system | I11: =IF(OR(I9="",I10=""),"", I9*I10*43560/12/24/3600) -> 3.117430556
C12: =IF(T6=2,0.012,IF(T6=3, 0.013,W13)) -> 0.018 | V12: selected | W12: n | X12: tile size
B13: Peak velocity in mainline given size and grade | D13: =IF(X13=0,"",1.49*(D10/100)^0.5*((X13/12/4)^(2/3))/C12) -> 2.077640638 | F13: Option 3 - Saturated Buffer system flow rate (Based on DRAINMOD Model or other source) | T13: CPT | V13: 7 | W13: =IF(X13=0,"", INDEX(V18:V27,V13)) -> 0.018 | X13: =INDEX(T18:T27,V13) -> 12
B14: Peak flow from mainline size and grade | D14: =IF(X13=0,"",D13*PI()*(X13/2/12)^2) -> 1.631775141 | F14: Describe Value Used and source
B16: Minimum Design Capacity: | D16: =IF(OR(X10=10000,X10=0),"",X10) -> 0.08158875707
B17: (5% of Option 1, 2, or 3; whichever is lower) | T17: Tile Dia. (in.) | V17: n | X17: Q @ dist line grade
B19: Selected Design Capacity | D19: 0.082 | E19: =IF(AND(ISNUMBER(D16),ISNUMBER(D19),D19<D16),"Design capacity must equal or exceed the minimum requirement","") ->  | T19: 4 | V19: 0.015 | X19: =(T19^(8/3))*($U$31)^0.5/(1631.7*V19) -> 0.1164787603
T20: 5 | V20: 0.015 | X20: 0.2111900442
B21: Size Distribution Pipe: | T21: 6 | V21: 0.015 | X21: 0.3434182973
B22: Distribution pipe min. grade (%) | D22: 0.5 | T22: 8 | V22: 0.016 | X22: 0.6933694
B23: Design distribution pipe diameter (in) | D23: =IF(ISNUMBER(D22),Y30,"") -> 6 | T23: 10 | V23: 0.017 | X23: 1.183211641
B24: Distance from dist. pipe to outlet channel, L (ft) | D24: 70 | T24: 12 | V24: 0.018 | X24: 1.817141888
B25: Ground surface elevation at WCS (ft) | D25: 49.5 | T25: 15 | V25: 0.018 | X25: 3.294697459
B26: Depth of impervious layer (ft) | D26: 7 | T26: 18 | V26: 0.02 | X26: 4.821787202
B27: Design water control weir elevation (ft) | D27: 49.5 | T27: 21 | V27: 0.02 | X27: 7.273321957
B28: Baseflow water elevation in ditch or outlet (ft) | D28: 43
B29: Head at WCS, h1 | D29: =D$26-(D$25-D27) -> 7 | T29: CPT distribution pipe | X29: match Q | Y29: =MATCH(U32,X19:X27,1) -> 
B30: Head at outlet, h2 | D30: =D$26-(D$25-D28) -> 0.5 | T30: min dia | U30: 4 | V30: in | X30: min dia | Y30: =MAX(Y31,IF(AND(ISNUMBER(Y29),D22>0),INDEX(T19:T27,1+Y29),Y31)) -> 6
T31: grade, ft/ft | U31: =D22/100 -> 0.005 | V31: ft/ft | X31: Min dia Allow | Y31: 6 | Z31: enter minimum allowed saturated buffer lateral size in cell AK31
B32: Soil saturated hydraulic conductivity, Ksat (μm/sec) | D32: 43.1 | T32: flow req (cfs) | U32: =IF(D19>0,D19,D16) -> 0.082
D33: =D32/1000000*3.28*60*60 -> 0.5089248
B34: Unit flow from distribution pipe, q (ft3/hr per ft) | D34: =IF(D29-D30>0,D33/(2*D24)*(D29^2-D30^2),"") -> 0.1772148857
U35: Depth of impervious layer >10 ft? | X35: =IF(D26>10,1,0) -> 0
B36: Distribution pipe length for min. design capacity | D36: =IF(AND(ISNUMBER(D34),ISNUMBER(D32)),ROUNDUP(D16*3600/D34,0),"") -> 1658 | W36: Impervious layer < channel bottom? | X36: =IF(D25-D26<D28-2,1,0) -> 0 | Y36: (This alert assumes that the baseflow water depth is 2 ft)
B37: Selected distribution pipe length (ft) | D37: 1675 | W37: Channel depth > 8 ft? | X37: =IF(D25-D28>8,1,0) -> 0
B38: Distribution pipe flow rate (ft3/hr) | D38: =IF(ISNUMBER(D34),D34*D37,"") -> 296.8349336
B39: % of drainage system capacity handled by saturated buffer design | D39: =IF(ISNUMBER(D34),D34*D37/3600/(D16/0.05),"") -> 0.05053033725
B41: =IF(X37=1,"CAUTION: channel may be incised deeper than 8 feet","") -> 
B42: =IF(X35=1,"CAUTION: depth to impervious layer > 10 ft","") -> 
B43: =IF(X36=1,"CAUTION: impervious layer more than 2 ft below channel bottom","") -> 
B44: Notes:

Sheet Elevations
A1: INPUTS
A2: Inputs | B2: Value
A3: Ground Surface (ft)
A4: Tile Depth (ft)
A5: Growing season boards, field (ft. below ground surface)
A6: Growing season boards, buffer (ft. below ground surface)
A7: Fallow season boards, field (ft. below ground surface)
A8: Fallow season boards, buffer (ft. below ground surface)
A9: Structure height (ft)
A10: Lowest Crop Elevation (ft)
A12: CALCULATIONS
A13: Elevation Calculations
A14: Base Contour | B14: =B3 -> 0
A15: Growing season field | B15: =B14-B5 -> 0
A16: Growing season buffer | B16: =B3-B6 -> 0
A17: Fallow season field | B17: =B3-B7 -> 0
A18: Fallow season buffer | B18: =B3-B8 -> 0
A19: Flowline of main pipe | B19: =B3-B4 -> 0
A20: Top of Structure | B20: =B19+B9 -> 0
A22: Board Depth Calculations (in)
A23: Fallow - field | B23: =(B20-B17)*12 -> 0
A24: Fallow - buffer | B24: =(B20-B18)*12 -> 0
A25: Crop - field | B25: =(B20-B15)*12 -> 0
A26: Crop - buffer | B26: =(B20-B16)*12 -> 0

Sheet survey
A1: FID | B1: PT_ID | C1: NORTHING | D1: EASTING | E1: ELEVATION | F1: DESCRIPTION
G112: Full Description | H112: Description Format | I112: Grid Easting | J112: Grid Northing | K112: Longitude | L112: Latitude | M112: Scale Factor | N112: Convergence | O112: Style | P112: Point Label Style | Q112: Point Layer | R112: Project Version | S112: X-Y Scale | T112: Z Scale | U112: Marker Rotation | V112: Label Rotation
G113: BNKL | I113: 4984.1273' | J113: 5440.5710' | K113: W81° 30' 46.59" | L113: N37° 35' 34.29" | M113: 1 | N113: -2° 49' 56.92" | Q113: SURV-POINTS
G114: BNKL | I114: 5083.8119' | J114: 5154.4213' | K114: W81° 30' 45.18" | L114: N37° 35' 31.52" | M114: 1 | N114: -2° 49' 56.03" | Q114: SURV-POINTS
G115: BNKL | I115: 5050.0152' | J115: 5032.5917' | K115: W81° 30' 45.53" | L115: N37° 35' 30.30" | M115: 1 | N115: -2° 49' 56.25" | Q115: SURV-POINTS
G116: BNKL | I116: 5066.2247' | J116: 4943.2152' | K116: W81° 30' 45.27" | L116: N37° 35' 29.42" | M116: 1 | N116: -2° 49' 56.09" | Q116: SURV-POINTS
G117: BNKL | I117: 5093.5701' | J117: 4860.2266' | K117: W81° 30' 44.88" | L117: N37° 35' 28.62" | M117: 1 | N117: -2° 49' 55.84" | Q117: SURV-POINTS
G118: BNKL | I118: 4796.8892' | J118: 5471.9707' | K118: W81° 30' 48.94" | L118: N37° 35' 34.51" | M118: 1 | N118: -2° 49' 58.39" | Q118: SURV-POINTS
G119: EFLD | I119: 4958.5120' | J119: 5373.3207' | K119: W81° 30' 46.87" | L119: N37° 35' 33.62" | M119: 1 | N119: -2° 49' 57.09" | Q119: SURV-POINTS
G120: EFLD | I120: 5010.1033' | J120: 5310.2342' | K120: W81° 30' 46.19" | L120: N37° 35' 33.02" | M120: 1 | N120: -2° 49' 56.66" | Q120: SURV-POINTS
G121: EFLD | I121: 5014.0278' | J121: 5178.6721' | K121: W81° 30' 46.06" | L121: N37° 35' 31.72" | M121: 1 | N121: -2° 49' 56.58" | Q121: SURV-POINTS
G122: EFLD | I122: 5000.5118' | J122: 5109.6138' | K122: W81° 30' 46.19" | L122: N37° 35' 31.03" | M122: 1 | N122: -2° 49' 56.66" | Q122: SURV-POINTS
G123: EFLD | I123: 4992.4299' | J123: 5046.0780' | K123: W81° 30' 46.25" | L123: N37° 35' 30.40" | M123: 1 | N123: -2° 49' 56.70" | Q123: SURV-POINTS
G124: EFLD | I124: 5204.4960' | J124: 4717.4999' | K124: W81° 30' 43.42" | L124: N37° 35' 27.26" | M124: 1 | N124: -2° 49' 54.92" | Q124: SURV-POINTS
G125: EFLD | I125: 5083.0303' | J125: 4780.5307' | K125: W81° 30' 44.96" | L125: N37° 35' 27.82" | M125: 1 | N125: -2° 49' 55.89" | Q125: SURV-POINTS
G126: EFLD | I126: 5023.3340' | J126: 4844.8259' | K126: W81° 30' 45.74" | L126: N37° 35' 28.43" | M126: 1 | N126: -2° 49' 56.38" | Q126: SURV-POINTS
G127: EFLD | I127: 4991.0195' | J127: 4932.3790' | K127: W81° 30' 46.20" | L127: N37° 35' 29.28" | M127: 1 | N127: -2° 49' 56.67" | Q127: SURV-POINTS
G128: EFLD | I128: 4990.1667' | J128: 5027.7200' | K128: W81° 30' 46.27" | L128: N37° 35' 30.22" | M128: 1 | N128: -2° 49' 56.71" | Q128: SURV-POINTS
G129: EFLD | I129: 4800.6260' | J129: 5410.2553' | K129: W81° 30' 48.85" | L129: N37° 35' 33.90" | M129: 1 | N129: -2° 49' 58.33" | Q129: SURV-POINTS
G130: GS | I130: 4925.9573' | J130: 4933.7070' | K130: W81° 30' 47.00" | L130: N37° 35' 29.26" | M130: 1 | N130: -2° 49' 57.17" | Q130: SURV-POINTS
G131: GS | I131: 4885.0846' | J131: 4850.3580' | K131: W81° 30' 47.46" | L131: N37° 35' 28.42" | M131: 1 | N131: -2° 49' 57.46" | Q131: SURV-POINTS
G132: GS | I132: 4846.1568' | J132: 4767.1074' | K132: W81° 30' 47.89" | L132: N37° 35' 27.58" | M132: 1 | N132: -2° 49' 57.73" | Q132: SURV-POINTS
G133: GS | I133: 4810.3414' | J133: 4690.3806' | K133: W81° 30' 48.29" | L133: N37° 35' 26.80" | M133: 1 | N133: -2° 49' 57.98" | Q133: SURV-POINTS
G134: GS | I134: 4708.4912' | J134: 4680.3466' | K134: W81° 30' 49.55" | L134: N37° 35' 26.65" | M134: 1 | N134: -2° 49' 58.77" | Q134: SURV-POINTS
G135: GS | I135: 4625.4218' | J135: 4721.2892' | K135: W81° 30' 50.60" | L135: N37° 35' 27.02" | M135: 1 | N135: -2° 49' 59.43" | Q135: SURV-POINTS
G136: GS | I136: 4556.7030' | J136: 4781.8415' | K136: W81° 30' 51.49" | L136: N37° 35' 27.58" | M136: 1 | N136: -2° 49' 59.99" | Q136: SURV-POINTS
G137: GS | I137: 4418.5834' | J137: 4898.3842' | K137: W81° 30' 53.28" | L137: N37° 35' 28.66" | M137: 1 | N137: -2° 50' 01.11" | Q137: SURV-POINTS
G138: GS | I138: 4357.5049' | J138: 4967.4307' | K138: W81° 30' 54.08" | L138: N37° 35' 29.32" | M138: 1 | N138: -2° 50' 01.61" | Q138: SURV-POINTS
G139: GS | I139: 4567.8999' | J139: 4699.5676' | K139: W81° 30' 51.30" | L139: N37° 35' 26.77" | M139: 1 | N139: -2° 49' 59.87" | Q139: SURV-POINTS
G140: GS | I140: 4541.8258' | J140: 4612.4547' | K140: W81° 30' 51.57" | L140: N37° 35' 25.90" | M140: 1 | N140: -2° 50' 00.04" | Q140: SURV-POINTS
G141: GS | I141: 4503.2452' | J141: 4524.0868' | K141: W81° 30' 52.00" | L141: N37° 35' 25.01" | M141: 1 | N141: -2° 50' 00.31" | Q141: SURV-POINTS
G142: GS | I142: 4454.7842' | J142: 4426.4322' | K142: W81° 30' 52.54" | L142: N37° 35' 24.02" | M142: 1 | N142: -2° 50' 00.65" | Q142: SURV-POINTS
G143: GS | I143: 4497.4430' | J143: 4385.3390' | K143: W81° 30' 51.98" | L143: N37° 35' 23.64" | M143: 1 | N143: -2° 50' 00.30" | Q143: SURV-POINTS
G144: GS | I144: 4531.4446' | J144: 4472.5985' | K144: W81° 30' 51.62" | L144: N37° 35' 24.52" | M144: 1 | N144: -2° 50' 00.07" | Q144: SURV-POINTS
G145: GS | I145: 4553.2707' | J145: 4531.2021' | K145: W81° 30' 51.38" | L145: N37° 35' 25.10" | M145: 1 | N145: -2° 49' 59.92" | Q145: SURV-POINTS
G146: GS | I146: 4587.6927' | J146: 4620.8124' | K146: W81° 30' 51.01" | L146: N37° 35' 26.01" | M146: 1 | N146: -2° 49' 59.69" | Q146: SURV-POINTS
G147: GS | I147: 4671.2498' | J147: 4604.2761' | K147: W81° 30' 49.96" | L147: N37° 35' 25.88" | M147: 1 | N147: -2° 49' 59.03" | Q147: SURV-POINTS
G148: GS | I148: 4646.2249' | J148: 4514.7397' | K148: W81° 30' 50.22" | L148: N37° 35' 24.99" | M148: 1 | N148: -2° 49' 59.19" | Q148: SURV-POINTS
G149: GS | I149: 4624.4519' | J149: 4421.1478' | K149: W81° 30' 50.43" | L149: N37° 35' 24.05" | M149: 1 | N149: -2° 49' 59.32" | Q149: SURV-POINTS
G150: GS | I150: 4623.5040' | J150: 4323.2922' | K150: W81° 30' 50.38" | L150: N37° 35' 23.09" | M150: 1 | N150: -2° 49' 59.29" | Q150: SURV-POINTS
G151: GS | I151: 4705.4121' | J151: 4364.0977' | K151: W81° 30' 49.39" | L151: N37° 35' 23.53" | M151: 1 | N151: -2° 49' 58.67" | Q151: SURV-POINTS
G152: GS | I152: 4733.2367' | J152: 4450.6973' | K152: W81° 30' 49.10" | L152: N37° 35' 24.40" | M152: 1 | N152: -2° 49' 58.49" | Q152: SURV-POINTS
G153: GS | I153: 4759.4926' | J153: 4537.8419' | K153: W81° 30' 48.83" | L153: N37° 35' 25.27" | M153: 1 | N153: -2° 49' 58.32" | Q153: SURV-POINTS
G154: GS | I154: 4785.7812' | J154: 4621.2839' | K154: W81° 30' 48.55" | L154: N37° 35' 26.11" | M154: 1 | N154: -2° 49' 58.15" | Q154: SURV-POINTS
G155: PVC | I155: 4941.9120' | J155: 4932.2854' | K155: W81° 30' 46.81" | L155: N37° 35' 29.25" | M155: 1 | N155: -2° 49' 57.05" | Q155: SURV-POINTS
G156: STA | I156: 5000.0000' | J156: 5000.0000' | K156: W81° 30' 46.13" | L156: N37° 35' 29.95" | M156: 1 | N156: -2° 49' 56.62" | Q156: SURV-POINTS
G157: TBM_CHK | I157: 4999.9572' | J157: 5464.8975' | K157: W81° 30' 46.41" | L157: N37° 35' 34.54" | M157: 1 | N157: -2° 49' 56.80" | Q157: SURV-POINTS
G158: TBM_NAIL_IN_TREE | I158: 5000.0000' | J158: 5464.9176' | K158: W81° 30' 46.41" | L158: N37° 35' 34.54" | M158: 1 | N158: -2° 49' 56.80" | Q158: SURV-POINTS
G159: TOP | I159: 5081.4359' | J159: 5037.6081' | K159: W81° 30' 45.14" | L159: N37° 35' 30.36" | M159: 1 | N159: -2° 49' 56.00" | Q159: SURV-POINTS
G160: WELL | I160: 4795.1878' | J160: 4658.5130' | K160: W81° 30' 48.46" | L160: N37° 35' 26.48" | M160: 1 | N160: -2° 49' 58.09" | Q160: SURV-POINTS
G161: WELL | I161: 4483.5534' | J161: 4842.0133' | K161: W81° 30' 52.44" | L161: N37° 35' 28.14" | M161: 1 | N161: -2° 50' 00.58" | Q161: SURV-POINTS
G162: WL | I162: 5100.4983' | J162: 5035.1169' | K162: W81° 30' 44.90" | L162: N37° 35' 30.35" | M162: 1 | N162: -2° 49' 55.85" | Q162: SURV-POINTS

Sheet Soil Investigation
A1: Insert soils information

Sheet Bank Stability
A1: Insert comments on bank stability and pictures of banks verifying visual stability

Sheet References
A1: References
A4: USDA – Natural Resources Conservation Service. National Engineering Handbook, Part 650 Engineering Field Handbook, Chapter 3 Hydraulics.
A6: USDA – Natural Resources Conservation Service. National Engineering Handbook, Part 650 Engineering Field Handbook, Chapter 19 Hydrology Tools for Wetland Identification and Analysis.
A8: USDA - Natural Resources Conservation Service. 2016. Field Office Technical Guide - Illinois. Conservation Practice Standard 604 - Saturated Buffer.
A10: USDA - Natural Resources Conservation Service. 2016. Field Office Technical Guide - Illinois. Conservation Practice Guidance 604 - Saturated Buffer.
A12: Utt, Nathan, D. Jaynes, J. Albertsen, S. Baker. 2015. Demonstrate and Evaluate Saturated Buffers at Field Scale to Reduce Nitrates and Phosphorus from Subsurface Field Drainage Systems. NRCS Conservation Innovation Grant 69-3A75-11-205 and FSA Order Number AG-3151-P-15-0168.

Sheet Modifications
A1: Date | B1: Version | C1: Description
C2: Initial development by Matt Helmers and Laura Christianson, Iowa State University, for use in designing Denitrifying Bioreactors. Adjusted by Bruce Atherton and Jerry Walker, NRCS.
A3: 2016-05-02 | C3: Formatted for potential field use, and repurposed for the saturated buffer design, using criteria from draft CPS 604 Added adjustable Manning's 'n' for CPT based on tile size (ASAE EP260.5) Added inputs for Ksat and drainable porosity Added computation for hydraulic retention time
A4: 2016-06-09 | C4: Corrected units conversion errors.
C5: Added inputs for drainage area and drainage coefficient; calculation for system flow using these inputs
C6: Computation for saturated buffer design flow based on 15% of whichever is lower: capacity of mainline given grade and size, or system flow given drainage area and drainage coefficient
A7: 2016-08-09 | C7: Corrected design % of drainage capacity to use the capacity computed in the 6/9/16 update
A8: 2016-08-11 | C8: Added input for system capacity from a model or other source
A9: 2016-08-18 | B9: 1.0 | C9: Finalized version 1.0 for Illinois use
A10: 2017-01-12 | B10: 1.1 | C10: Updated References
C11: Added user input alerts and warnings
C12: Added guidance in cell notes on information expected
C13: Added Example Design tab as a reference EXAMPLE ONLY
C14: Added distribution pipe diameter sizing
A15: 2017-03-17 | B15: 1.2 | C15: Updated to national version and to meet March, 2017 pen-and-ink changes to CPS 604.
C16: This includes: buffer capacity 5% rather than 15% of drainage system capacity
C17: Hydraulic retention time calculation no longer needed: removed.
A18: 2017-04-10 | B18: 2.0 | C18: Finalized version 2.0 for Illinois use (formatting, etc)
A19: 2017-04-10 | B19: 2.1 | C19: Added warnings for potential data entry errors
A20: 2020-04-13 | B20: 2.2 | C20: Adapted for use in Maryland
